fUST/lending_fUST_20250723
["ID","MTS","AMOUNT","RATE_DAILY","PERIOD"]
[374136792,1753227042244,-460.0,0.00017069,2]
[374136793,1753227042254,-222.35651236,0.00017069,2]
[374136794,1753227042263,-460.0,0.00017069,2]
[374136795,1753227042273,-460.0,0.00017069,2]
[374136796,1753227042282,-305.16173204,0.00017069,2]
[374136797,1753227042292,-460.0,0.00017069,2]
[374136798,1753227042302,-460.0,0.00017069,2]
[374136799,1753227042311,-460.0,0.00017069,2]
[374136800,1753227042320,-460.0,0.00017069,2]
[374136801,1753227042330,-516.34,0.00017069,2]
[374136802,1753227042341,-460.0,0.00017069,2]
[374136803,1753227042351,-1860.33,0.00017069,2]
[374136804,1753227042361,-460.0,0.00017069,2]
[374136805,1753227042376,-460.0,0.00017069,2]
[374136806,1753227042385,-460.0,0.00017069,2]
[374136807,1753227042395,-460.0,0.00017069,2]
[374136808,1753227042404,-1494.32,0.00017069,2]
[374136809,1753227042414,-460.0,0.00017069,2]
[374136810,1753227042423,-460.0,0.00017069,2]
[374136811,1753227042432,-460.0,0.00017069,2]
[374136812,1753227042442,-460.0,0.00017069,2]
[374136814,1753227042451,-460.0,0.00017069,2]
[374136815,1753227042460,-479.48988031,0.00017069,2]
[374136817,1753227042469,-460.0,0.00017069,2]
[374136819,1753227042481,-1123.13,0.00017069,2]
[374136821,1753227042490,-460.0,0.00017069,2]
[374136823,1753227042499,-460.0,0.00017069,2]
[374136824,1753227042508,-460.0,0.00017069,2]
[374136825,1753227042517,-1152.83,0.00017069,2]
[374136826,1753227042526,-460.0,0.00017069,2]
[374136827,1753227042535,-460.0,0.00017069,2]
[374136829,1753227042545,-460.0,0.00017069,2]
[374136831,1753227042554,-460.0,0.00017069,2]
[374136833,1753227042563,-308.50951655,0.00017069,2]
[374136834,1753227042573,-556.67,0.00017069,2]
[374136835,1753227042582,-460.0,0.00017069,2]
[374136836,1753227042592,-460.0,0.00017069,2]
[374136837,1753227042601,-460.0,0.00017069,2]
[374136838,1753227042611,-460.0,0.00017069,2]
[374136839,1753227042620,-460.0,0.00017069,2]
[374136840,1753227042629,-652.44,0.00017069,2]
[374136841,1753227042639,-460.0,0.00017069,2]
[374136842,1753227042648,-460.0,0.00017069,2]
[374136843,1753227042658,-460.0,0.00017069,2]
[374136844,1753227042667,-460.0,0.00017069,2]
[374136845,1753227042676,-460.0,0.00017069,2]
[374136846,1753227042686,-460.0,0.00017069,2]
[374136847,1753227042695,-460.0,0.00017069,2]
[374136848,1753227042705,-460.0,0.00017069,2]
[374136849,1753227042714,-460.0,0.00017069,2]
[374136850,1753227042724,-395.88878397,0.00017069,2]
[374136851,1753227042733,-460.0,0.00017071,2]
[374136852,1753227042743,-460.0,0.00017071,2]
[374136853,1753227042752,-460.0,0.00017071,2]
[374136854,1753227042762,-460.0,0.00017071,2]
[374136855,1753227042772,-2022.49,0.00017071,2]
[374136856,1753227042781,-320.37891063,0.00017071,2]
[374136857,1753227042790,-460.0,0.00017071,2]
[374136858,1753227042803,-460.0,0.00017071,2]
[374136859,1753227042812,-946.41,0.00017071,2]
[374136860,1753227042821,-460.0,0.00017071,2]
[374136861,1753227042830,-460.0,0.00017071,2]
[374136862,1753227042840,-460.0,0.00017071,2]
[374136864,1753227042849,-460.0,0.00017071,2]
[374136865,1753227042858,-460.0,0.00017071,2]
[374136866,1753227042867,-460.0,0.00017071,2]
[374136867,1753227042877,-289.10634906,0.00017071,2]
[374136868,1753227042887,-460.0,0.00017071,2]
[374136869,1753227042896,-544.55,0.00017071,2]
[374136870,1753227042905,-460.0,0.00017071,2]
[374136871,1753227042914,-460.0,0.00017071,2]
[374136872,1753227042923,-460.0,0.00017071,2]
[374136873,1753227042932,-460.0,0.00017071,2]
[374136874,1753227042941,-460.0,0.00017071,2]
[374136875,1753227042950,-460.0,0.00017071,2]
[374136876,1753227042959,-460.0,0.00017071,2]
[374136877,1753227042968,-460.0,0.00017071,2]
[374136878,1753227042979,-460.0,0.00017071,2]
[374136879,1753227042988,-460.0,0.00017071,2]
[374136880,1753227042998,-460.0,0.00017071,2]
[374136881,1753227043007,-460.0,0.00017071,2]
[374136882,1753227043017,-979.44,0.00017071,2]
[374136883,1753227043026,-460.0,0.00017071,2]
[374136884,1753227043035,-460.0,0.00017071,2]
[374136885,1753227043044,-460.0,0.00017071,2]
[374136886,1753227043054,-887.93,0.00017071,2]
[374136887,1753227043063,-500.0,0.00017071,2]
[374136888,1753227043072,-460.0,0.00017071,2]
[374136889,1753227043081,-460.0,0.00017071,2]
[374136890,1753227043091,-866.92,0.00017071,2]
[374136891,1753227043100,-460.0,0.00017071,2]
[374136893,1753227043109,-460.0,0.00017071,2]
[374136895,1753227043118,-460.0,0.00017071,2]
[374136897,1753227043213,-460.0,0.00017071,2]
[374136898,1753227043223,-460.0,0.00017071,2]
[374136899,1753227043235,-460.0,0.00017072,2]
[374136900,1753227043244,-460.0,0.00017072,2]
[374136901,1753227043254,-460.0,0.00017072,2]
[374136902,1753227043265,-460.0,0.00017072,2]
[374136903,1753227043274,-354.04069426,0.00017072,2]
[374136904,1753227043283,-460.0,0.00017072,2]
[374136906,1753227043293,-217.98,0.00017072,2]
[374136907,1753227043302,-500.0,0.00017072,2]
[374136908,1753227043312,-460.0,0.00017072,2]
[374136909,1753227043322,-460.0,0.00017072,2]
[374136910,1753227043331,-460.0,0.00017072,2]
[374136911,1753227043340,-460.0,0.00017072,2]
[374136912,1753227043350,-460.0,0.00017072,2]
[374136914,1753227043359,-460.0,0.00017072,2]
[374136916,1753227043370,-500.0,0.00017073,2]
[374136917,1753227043379,-500.0,0.00017073,2]
[374136918,1753227043389,-500.0,0.00017073,2]
[374136919,1753227043398,-500.0,0.00017073,2]
[374136920,1753227043407,-500.0,0.00017073,2]
[374136921,1753227043416,-567.78,0.00017073,2]
[374136922,1753227043425,-513.18947775,0.00017073,2]
[374136923,1753227043435,-460.0,0.00017073,2]
[374136924,1753227043445,-704.66,0.00017073,2]
[374136925,1753227043454,-1610.18,0.00017073,2]
[374136926,1753227043463,-953.79,0.00017073,2]
[374136927,1753227043472,-460.0,0.00017073,2]
[374136928,1753227043483,-14154.52647962,0.00017243,2]
[374136929,1753227043493,-3948.89799875,0.00017245,2]
[374136930,1753227043502,-460.0,0.00017341,2]
[374136931,1753227043511,-460.0,0.00017343,2]
[374136932,1753227043521,-460.0,0.00017343,2]
[374136933,1753227043530,-340.0,0.00017343,2]
[374136934,1753227043539,-460.0,0.00017343,2]
[374136935,1753227043548,-460.0,0.00017343,2]
[374136936,1753227043557,-1860.33,0.00017343,2]
[374136937,1753227043566,-460.0,0.00017343,2]
[374136938,1753227043575,-460.0,0.00017343,2]
[374136939,1753227043585,-460.0,0.00017343,2]
[374136940,1753227043595,-460.0,0.00017343,2]
[374136941,1753227043604,-460.0,0.00017343,2]
[374136942,1753227043614,-1494.32,0.00017343,2]
[374136943,1753227043624,-409.46216117,0.00017343,2]
[374136944,1753227043633,-474.47913566,0.00017343,2]
[374136945,1753227043642,-460.0,0.00017343,2]
[374136946,1753227043652,-460.0,0.00017343,2]
[374136947,1753227043661,-460.0,0.00017343,2]
[374136948,1753227043671,-460.0,0.00017343,2]
[374136949,1753227043680,-1123.13,0.00017343,2]
[374136950,1753227043690,-460.0,0.00017343,2]
[374136951,1753227043699,-460.0,0.00017343,2]
[374136952,1753227043708,-460.0,0.00017343,2]
[374136953,1753227043718,-1152.83,0.00017343,2]
[374136954,1753227043730,-460.0,0.00017343,2]
[374136955,1753227043740,-460.0,0.00017343,2]
[374136956,1753227043749,-460.0,0.00017343,2]
[374136957,1753227043758,-460.0,0.00017343,2]
[374136958,1753227043768,-556.67,0.00017343,2]
[374136959,1753227043777,-460.0,0.00017343,2]
[374136960,1753227043787,-460.0,0.00017343,2]
[374136961,1753227043797,-460.0,0.00017343,2]
[374136962,1753227043812,-460.0,0.00017343,2]
[374136963,1753227043821,-460.0,0.00017343,2]
[374136964,1753227043831,-652.44,0.00017343,2]
[374136965,1753227043840,-460.0,0.00017343,2]
[374136966,1753227043850,-460.0,0.00017343,2]
[374136967,1753227043860,-460.0,0.00017343,2]
[374136968,1753227043870,-460.0,0.00017343,2]
[374136969,1753227043881,-460.0,0.00017343,2]
[374136970,1753227043892,-460.0,0.00017343,2]
[374136971,1753227043902,-460.0,0.00017343,2]
[374136972,1753227043911,-460.0,0.00017343,2]
[374136973,1753227043922,-460.0,0.00017343,2]
[374136974,1753227043932,-460.0,0.00017345,2]
[374136975,1753227043941,-460.0,0.00017345,2]
[374136976,1753227043951,-2022.49,0.00017345,2]
[374136977,1753227043960,-460.0,0.00017345,2]
[374136978,1753227043970,-946.41,0.00017345,2]
[374136979,1753227043982,-460.0,0.00017345,2]
[374136980,1753227043991,-460.0,0.00017345,2]
[374136981,1753227044000,-460.0,0.00017345,2]
[374136982,1753227044010,-460.0,0.00017345,2]
[374136983,1753227044020,-460.0,0.00017345,2]
[374136984,1753227044030,-460.0,0.00017345,2]
[374136985,1753227044039,-460.0,0.00017345,2]
[374136986,1753227044048,-460.0,0.00017345,2]
[374136987,1753227044058,-460.0,0.00017345,2]
[374136988,1753227044067,-460.0,0.00017345,2]
[374136989,1753227044076,-460.0,0.00017345,2]
[374136990,1753227044086,-460.0,0.00017345,2]
[374136991,1753227044095,-460.0,0.00017345,2]
[374136992,1753227044104,-460.0,0.00017345,2]
[374136993,1753227044115,-979.44,0.00017345,2]
[374136994,1753227044124,-589.83671942,0.00017345,2]
[374136995,1753227044133,-460.0,0.00017345,2]
[374136996,1753227044143,-887.93,0.00017345,2]
[374136997,1753227044152,-500.0,0.00017345,2]
[374136998,1753227044162,-460.0,0.00017345,2]
[374136999,1753227044171,-460.0,0.00017345,2]
[374137000,1753227044180,-866.92,0.00017345,2]
[374137001,1753227044189,-460.0,0.00017345,2]
[374137002,1753227044199,-460.0,0.00017345,2]
[374137003,1753227044208,-460.0,0.00017345,2]
[374137004,1753227044217,-460.0,0.00017345,2]
[374137005,1753227044233,-460.0,0.00017346,2]
[374137006,1753227044247,-460.0,0.00017346,2]
[374137007,1753227044262,-460.0,0.00017346,2]
[374137008,1753227044276,-460.0,0.00017346,2]
[374137009,1753227044288,-460.0,0.00017346,2]
[374137010,1753227044301,-460.0,0.00017346,2]
[374137011,1753227044313,-460.0,0.00017346,2]
[374137012,1753227044326,-567.78,0.00017347,2]
[374137013,1753227044338,-460.0,0.00017347,2]
[374137014,1753227044351,-704.66,0.00017347,2]
[374137015,1753227044364,-474.44,0.00017347,2]
[374137016,1753227044377,-1610.18,0.00017347,2]
[374137017,1753227044389,-953.79,0.00017347,2]
[374137018,1753227044403,-460.0,0.00017347,2]
[374137019,1753227044415,-500.0,0.0001752,2]
[374137020,1753227044428,-574.87504249,0.00017617,2]
[374137021,1753227044440,-460.0,0.00017617,2]
[374137022,1753227044452,-460.0,0.00017617,2]
[374137023,1753227044464,-1860.33,0.00017617,2]
[374137024,1753227044477,-460.0,0.00017617,2]
[374137025,1753227044489,-460.0,0.00017617,2]
[374137026,1753227044501,-460.0,0.00017617,2]
[374137027,1753227044511,-460.0,0.00017617,2]
[374137028,1753227044522,-460.0,0.00017617,2]
[374137029,1753227044534,-1494.32,0.00017617,2]
[374137030,1753227044545,-460.0,0.00017617,2]
[374137031,1753227044558,-460.0,0.00017617,2]
[374137032,1753227044570,-460.0,0.00017617,2]
[374137033,1753227044583,-1123.13,0.00017617,2]
[374137034,1753227044596,-460.0,0.00017617,2]
[374137035,1753227044610,-460.0,0.00017617,2]
[374137036,1753227044623,-460.0,0.00017617,2]
[374137037,1753227044637,-1152.83,0.00017617,2]
[374137038,1753227044650,-460.0,0.00017617,2]
[374137039,1753227044661,-460.0,0.00017617,2]
[374137040,1753227044671,-460.0,0.00017617,2]
[374137041,1753227044682,-460.0,0.00017617,2]
[374137042,1753227044694,-556.67,0.00017617,2]
[374137043,1753227044708,-460.0,0.00017617,2]
[374137044,1753227044721,-460.0,0.00017617,2]
[374137045,1753227044738,-460.0,0.00017617,2]
[374137046,1753227044748,-460.0,0.00017617,2]
[374137047,1753227044759,-652.44,0.00017617,2]
[374137048,1753227044770,-460.0,0.00017617,2]
[374137049,1753227044783,-460.0,0.00017617,2]
[374137050,1753227044796,-460.0,0.00017617,2]
[374137051,1753227044813,-460.0,0.00017617,2]
[374137052,1753227044824,-460.0,0.00017617,2]
[374137053,1753227044834,-460.0,0.00017617,2]
[374137054,1753227044846,-460.0,0.00017617,2]
[374137055,1753227044858,-460.0,0.00017617,2]
[374137056,1753227044869,-460.0,0.00017619,2]
[374137057,1753227044881,-2022.49,0.00017619,2]
[374137058,1753227044894,-460.0,0.00017619,2]
[374137059,1753227044905,-946.41,0.00017619,2]
[374137060,1753227044916,-460.0,0.00017619,2]
[374137061,1753227044927,-460.0,0.00017619,2]
[374137062,1753227044938,-460.0,0.00017619,2]
[374137063,1753227044950,-460.0,0.00017619,2]
[374137064,1753227044961,-460.0,0.00017619,2]
[374137065,1753227044972,-448.57,0.00017619,2]
[374137066,1753227044986,-460.0,0.00017619,2]
[374137067,1753227044996,-460.0,0.00017619,2]
[374137068,1753227045007,-460.0,0.00017619,2]
[374137069,1753227045019,-460.0,0.00017619,2]
[374137070,1753227045030,-588.73,0.00017619,2]
[374137071,1753227045041,-460.0,0.00017619,2]
[374137072,1753227045052,-460.0,0.00017619,2]
[374137073,1753227045063,-979.44,0.00017619,2]
[374137074,1753227045075,-460.0,0.00017619,2]
[374137075,1753227045086,-887.93,0.00017619,2]
[374137076,1753227045098,-460.0,0.00017619,2]
[374137077,1753227045109,-866.92,0.00017619,2]
[374137078,1753227045120,-460.0,0.00017619,2]
[374137079,1753227045132,-460.0,0.00017619,2]
[374137080,1753227045143,-460.0,0.00017619,2]
[374137081,1753227045157,-376.07180376,0.00017619,2]
[374137082,1753227045168,-460.0,0.0001762,2]
[374137083,1753227045178,-460.0,0.0001762,2]
[374137084,1753227045189,-608.98,0.0001762,2]
[374137085,1753227045200,-1000.0,0.00017621,2]
[374137086,1753227045211,-1000.0,0.00017621,2]
[374137087,1753227045222,-1000.0,0.00017621,2]
[374137088,1753227045235,-1000.0,0.00017621,2]
[374137089,1753227045246,-567.78,0.00017621,2]
[374137090,1753227045257,-460.0,0.00017621,2]
[374137091,1753227045267,-704.66,0.00017621,2]
[374137092,1753227045278,-474.44,0.00017621,2]
[374137093,1753227045289,-1610.18,0.00017621,2]
[374137094,1753227045301,-953.79,0.00017621,2]
[374137095,1753227045311,-500.0,0.00017622,2]
[374137096,1753227045324,-500.0,0.00017673,2]
[374137097,1753227045335,-460.0,0.00017891,2]
[374137098,1753227045346,-227.75577355,0.00017891,2]
[374137099,1753227045357,-1860.33,0.00017891,2]
[374137100,1753227045369,-460.0,0.00017891,2]
[374137101,1753227045379,-460.0,0.00017891,2]
[374137102,1753227045391,-460.0,0.00017891,2]
[374137103,1753227045402,-460.0,0.00017891,2]
[374137104,1753227045413,-460.0,0.00017891,2]
[374137105,1753227045424,-1494.32,0.00017891,2]
[374137106,1753227045436,-460.0,0.00017891,2]
[374137107,1753227045447,-460.0,0.00017891,2]
[374137112,1753227045578,-1123.13,0.00017891,2]
[374137113,1753227045591,-460.0,0.00017891,2]
[374137114,1753227045600,-460.0,0.00017891,2]
[374137115,1753227045610,-460.0,0.00017891,2]
[374137116,1753227045619,-1152.83,0.00017891,2]
[374137117,1753227045629,-460.0,0.00017891,2]
[374137118,1753227045638,-460.0,0.00017891,2]
[374137119,1753227045647,-460.0,0.00017891,2]
[374137120,1753227045656,-460.0,0.00017891,2]
[374137121,1753227045665,-556.67,0.00017891,2]
[374137122,1753227045674,-460.0,0.00017891,2]
[374137123,1753227045683,-460.0,0.00017891,2]
[374137124,1753227045693,-460.0,0.00017891,2]
[374137125,1753227045702,-460.0,0.00017891,2]
[374137126,1753227045711,-652.44,0.00017891,2]
[374137127,1753227045721,-460.0,0.00017891,2]
[374137128,1753227045731,-460.0,0.00017891,2]
[374137129,1753227045741,-460.0,0.00017891,2]
[374137130,1753227045750,-460.0,0.00017891,2]
[374137131,1753227045760,-460.0,0.00017891,2]
[374137132,1753227045769,-460.0,0.00017891,2]
[374137133,1753227045779,-460.0,0.00017891,2]
[374137134,1753227045789,-460.0,0.00017891,2]
[374137135,1753227045803,-460.0,0.00017893,2]
[374137136,1753227045813,-2022.49,0.00017893,2]
[374137137,1753227045823,-460.0,0.00017893,2]
[374137138,1753227045832,-946.41,0.00017893,2]
[374137139,1753227045843,-534.99697422,0.00017893,2]
[374137140,1753227045852,-460.0,0.00017893,2]
[374137142,1753227045861,-460.0,0.00017893,2]
[374137144,1753227045871,-460.0,0.00017893,2]
[374137145,1753227045880,-460.0,0.00017893,2]
[374137146,1753227045890,-460.0,0.00017893,2]
[374137147,1753227045899,-460.0,0.00017893,2]
[374137148,1753227045908,-460.0,0.00017893,2]
[374137149,1753227045918,-460.0,0.00017893,2]
[374137150,1753227045927,-460.0,0.00017893,2]
[374137151,1753227045936,-460.0,0.00017893,2]
[374137152,1753227045946,-979.44,0.00017893,2]
[374137154,1753227045955,-460.0,0.00017893,2]
[374137155,1753227045964,-887.93,0.00017893,2]
[374137157,1753227045974,-866.92,0.00017893,2]
[374137158,1753227045985,-460.0,0.00017893,2]
[374137159,1753227045994,-460.0,0.00017893,2]
[374137160,1753227046003,-460.0,0.00017893,2]
[374137161,1753227046012,-500.0,0.00017894,2]
[374137162,1753227046022,-460.0,0.00017894,2]
[374137163,1753227046031,-460.0,0.00017894,2]
[374137164,1753227046040,-567.78,0.00017895,2]
[374137165,1753227046050,-460.0,0.00017895,2]
[374137166,1753227046059,-704.66,0.00017895,2]
[374137167,1753227046068,-474.44,0.00017895,2]
[374137168,1753227046078,-1610.18,0.00017895,2]
[374137169,1753227046087,-953.79,0.00017895,2]
[374137170,1753227046096,-263.89327024,0.00017895,2]
[374137171,1753227046106,-151.0,0.00017895,2]
[374137172,1753227046115,-2569.96206505,0.000179,2]
[374137173,1753227046125,-22237.80254699,0.00018,2]
[374137174,1753227046134,-152.68908941,0.00018087,2]
[374137175,1753227046144,-151.0,0.000181,2]
[374137176,1753227046153,-437.92,0.00018158,3]
[374137177,1753227046162,-223.10380417,0.00018165,2]
[374137178,1753227046171,-1860.33,0.00018165,2]
[374137179,1753227046180,-460.0,0.00018165,2]
[374137180,1753227046189,-460.0,0.00018165,2]
[374137182,1753227046199,-460.0,0.00018165,2]
[374137183,1753227046208,-460.0,0.00018165,2]
[374137184,1753227046219,-460.0,0.00018165,2]
[374137185,1753227046230,-1494.32,0.00018165,2]
[374137186,1753227046239,-460.0,0.00018165,2]
[374137187,1753227046248,-460.0,0.00018165,2]
[374137188,1753227046257,-460.0,0.00018165,2]
[374137189,1753227046267,-460.0,0.00018165,2]
[374137190,1753227046276,-1152.83,0.00018165,2]
[374137191,1753227046285,-460.0,0.00018165,2]
[374137192,1753227046295,-173.49457984,0.00018165,2]
[374137193,1753227046304,-460.0,0.00018165,2]
[374137194,1753227046314,-460.0,0.00018165,2]
[374137195,1753227046323,-556.67,0.00018165,2]
[374137196,1753227046333,-460.0,0.00018165,2]
[374137197,1753227046342,-460.0,0.00018165,2]
[374137198,1753227046351,-460.0,0.00018165,2]
[374137199,1753227046360,-460.0,0.00018165,2]
[374137200,1753227046370,-652.44,0.00018165,2]
[374137201,1753227046380,-460.0,0.00018165,2]
[374137202,1753227046390,-460.0,0.00018165,2]
[374137203,1753227046399,-460.0,0.00018165,2]
[374137204,1753227046409,-460.0,0.00018165,2]
[374137205,1753227046419,-460.0,0.00018165,2]
[374137206,1753227046428,-460.0,0.00018165,2]
[374137207,1753227046437,-460.0,0.00018167,2]
[374137208,1753227046446,-2022.49,0.00018167,2]
[374137209,1753227046456,-460.0,0.00018167,2]
[374137210,1753227046466,-946.41,0.00018167,2]
[374137211,1753227046475,-214.35,0.00018167,2]
[374137212,1753227046485,-188.94,0.00018167,2]
[374137213,1753227046496,-460.0,0.00018167,2]
[374137214,1753227046505,-460.0,0.00018167,2]
[374137215,1753227046515,-460.0,0.00018167,2]
[374137216,1753227046524,-460.0,0.00018167,2]
[374137217,1753227046534,-460.0,0.00018167,2]
[374137218,1753227046543,-460.0,0.00018167,2]
[374137219,1753227046553,-460.0,0.00018167,2]
[374137220,1753227046563,-460.0,0.00018167,2]
[374137221,1753227046572,-979.44,0.00018167,2]
[374137222,1753227046582,-460.0,0.00018167,2]
[374137223,1753227046591,-887.93,0.00018167,2]
[374137224,1753227046601,-866.92,0.00018167,2]
[374137225,1753227046611,-460.0,0.00018167,2]
[374137226,1753227046620,-460.0,0.00018167,2]
[374137227,1753227046629,-460.0,0.00018167,2]
[374137228,1753227046639,-500.0,0.00018168,2]
[374137229,1753227046648,-460.0,0.00018168,2]
[374137230,1753227046658,-1500.0,0.00018168,2]
[374137231,1753227046667,-1500.0,0.00018168,2]
[374137232,1753227046678,-1500.0,0.00018168,2]
[374137233,1753227046689,-151.0,0.00018169,2]
[374137234,1753227046699,-567.78,0.00018169,2]
[374137235,1753227046708,-460.0,0.00018169,2]
[374137236,1753227046717,-704.66,0.00018169,2]
[374137237,1753227046728,-151.0,0.00018169,2]
[374137238,1753227046737,-151.0,0.00018169,2]
[374137239,1753227046746,-1610.18,0.00018169,2]
[374137240,1753227046756,-500.0,0.00018169,2]
[374137241,1753227046766,-199.85067858,0.00018169,2]
[374137242,1753227046775,-953.79,0.00018169,2]
[374137243,1753227046785,-500.0,0.00018169,2]
[374137244,1753227046795,-2569.962065,0.00018176,2]
[374137245,1753227046806,-1000.0,0.00018221,2]
[374137246,1753227046816,-500.0,0.00018416,2]
[374137247,1753227046825,-500.0,0.00018416,2]
[374137248,1753227046834,-500.0,0.00018416,2]
[374137249,1753227046843,-500.0,0.00018416,2]
[374137250,1753227046854,-384.59957403,0.00018416,2]
[374137251,1753227046863,-585.83766667,0.00018416,2]
[374137252,1753227046873,-500.0,0.00018416,2]
[374137253,1753227046884,-500.7334149,0.00018416,2]
[374137254,1753227046895,-500.0,0.00018416,2]
[374137255,1753227046905,-500.0,0.00018416,2]
[374137256,1753227046915,-500.0,0.00018416,2]
[374137257,1753227046924,-500.0,0.00018416,2]
[374137258,1753227046936,-500.0,0.00018416,2]
[374137259,1753227046946,-576.25971282,0.00018416,2]
[374137260,1753227046955,-500.0,0.00018416,2]
[374137261,1753227046964,-158.24456205,0.00018416,2]
[374137262,1753227046974,-500.0,0.00018416,2]
[374137263,1753227046985,-502.05891511,0.00018429,2]
[374137264,1753227046994,-500.0,0.00018429,2]
[374137265,1753227047004,-500.86190192,0.00018429,2]
[374137266,1753227047014,-500.0,0.00018429,2]
[374137267,1753227047024,-500.0,0.00018429,2]
[374137268,1753227047037,-500.0,0.00018429,2]
[374137269,1753227047047,-500.0,0.00018429,2]
[374137270,1753227047057,-500.92693981,0.00018429,2]
[374137271,1753227047066,-500.0,0.00018429,2]
[374137272,1753227047076,-500.0,0.00018429,2]
[374137273,1753227047085,-509.72710749,0.00018429,2]
[374137274,1753227047095,-1860.33,0.00018439,2]
[374137275,1753227047105,-460.0,0.00018439,2]
[374137276,1753227047115,-454.46,0.00018439,2]
[374137277,1753227047126,-460.0,0.00018439,2]
[374137278,1753227047135,-460.0,0.00018439,2]
[374137279,1753227047145,-460.0,0.00018439,2]
[374137280,1753227047154,-1494.32,0.00018439,2]
[374137281,1753227047163,-460.0,0.00018439,2]
[374137282,1753227047173,-460.0,0.00018439,2]
[374137283,1753227047182,-460.0,0.00018439,2]
[374137284,1753227047191,-460.0,0.00018439,2]
[374137285,1753227047200,-1152.83,0.00018439,2]
[374137286,1753227047209,-460.0,0.00018439,2]
[374137287,1753227047219,-460.0,0.00018439,2]
[374137288,1753227047228,-151.18,0.00018439,2]
[374137289,1753227047237,-556.67,0.00018439,2]
[374137290,1753227047246,-460.0,0.00018439,2]
[374137291,1753227047255,-460.0,0.00018439,2]
[374137292,1753227047265,-460.0,0.00018439,2]
[374137293,1753227047275,-460.0,0.00018439,2]
[374137294,1753227047284,-652.44,0.00018439,2]
[374137295,1753227047293,-460.0,0.00018439,2]
[374137296,1753227047302,-460.0,0.00018439,2]
[374137297,1753227047312,-460.0,0.00018439,2]
[374137298,1753227047321,-460.0,0.00018439,2]
[374137299,1753227047330,-460.0,0.00018439,2]
[374137300,1753227047339,-460.0,0.00018441,2]
[374137301,1753227047348,-2022.49,0.00018441,2]
[374137302,1753227047358,-460.0,0.00018441,2]
[374137303,1753227047367,-946.41,0.00018441,2]
[374137304,1753227047377,-460.0,0.00018441,2]
[374137305,1753227047386,-460.0,0.00018441,2]
[374137306,1753227047396,-460.0,0.00018441,2]
[374137307,1753227047406,-493.5991699,0.00018441,2]
[374137308,1753227047415,-289.39,0.00018441,2]
[374137309,1753227047425,-460.0,0.00018441,2]
[374137310,1753227047434,-460.0,0.00018441,2]
[374137311,1753227047443,-460.0,0.00018441,2]
[374137312,1753227047453,-979.44,0.00018441,2]
[374137313,1753227047462,-460.0,0.00018441,2]
[374137314,1753227047471,-887.93,0.00018441,2]
[374137315,1753227047481,-866.92,0.00018441,2]